fUST/lending_fUST_20240719
["ID","MTS","AMOUNT","RATE_DAILY","PERIOD"]
[332621244,1721363798650,159.090909,0.00015598,2]
[332621245,1721363798858,159.090909,0.00015679,2]
[332621246,1721363827023,165.76597805,0.000225,30]
[332621247,1721363875627,1277.12602724,0.00015612,2]
[332621248,1721363908818,24900.0,0.00015502,2]
[332621249,1721363991238,993.98027656,9.999e-05,2]
[332621250,1721364004186,993.98027656,9.999e-05,2]
[332621251,1721364011434,941.25374337,9.999e-05,2]
[332621252,1721364021065,941.25374337,9.999e-05,2]
[332621253,1721364052696,669.47179043,0.0001212,2]
[332621254,1721364070407,474.58299816,0.00015612,2]
[332621255,1721364070435,642.90227571,0.00015612,2]
[332621256,1721364073546,941.25374337,0.0001212,2]
[332621257,1721364147038,476.24064531,0.00014691,2]
[332621258,1721364154135,155.48643953,0.00014691,2]
[332621259,1721364194550,286.67318158,9.999e-05,2]
[332621260,1721364235473,251.88019181,0.0001212,2]
[332621261,1721364260982,977.79961461,0.0001561,2]
[332621262,1721364295600,166.666666,0.00014795,2]
[332621263,1721364405372,2300.26826923,0.00015619,2]
[332621264,1721364451084,196.15176283,9.999e-05,2]
[332621265,1721364452358,159.090909,0.00014829,2]
[332621266,1721364452589,159.090909,0.0001494,2]
[332621267,1721364452792,159.090909,0.0001505,2]
[332621268,1721364453020,159.090909,0.00015161,2]
[332621269,1721364456146,159.090909,0.00015271,2]
[332621270,1721364456389,159.090909,0.00015381,2]
[332621271,1721364456622,159.090909,0.00015492,2]
[332621272,1721364456810,159.090909,0.00015602,2]
[332621273,1721364460937,855.57466281,0.00015609,2]
[332621274,1721364554328,240.45271023,9.999e-05,2]
[332621275,1721364584328,240.45271023,9.999e-05,2]
[332621276,1721364585848,-300.0,0.00015698,2]
[332621277,1721364585881,-237.0,0.00015698,2]
[332621278,1721364585914,-348.3185602,0.00015699,2]
[332621279,1721364585955,-656.05406036,0.00015699,2]
[332621280,1721364611051,-300.0,0.00015698,2]
[332621281,1721364611085,-616.14601261,0.00015699,2]
[332621282,1721364611135,-611.24743628,0.00015699,2]
[332621283,1721364616698,154.79103211,9.999e-05,2]
[332621320,1721364632602,-1340.06537772,0.00015699,2]
[332621356,1721364638480,-11257.03314499,0.00015699,2]
[332621409,1721364640559,-1045.94,0.00015699,2]
[332621411,1721364640571,-661.36020003,0.00015699,2]
[332621413,1721364640582,-1129.02255697,0.00015699,2]
[332621415,1721364640593,-661.064792,0.00015699,2]
[332621427,1721364640691,24900.0,0.00014728,2]
[332621448,1721364644081,159.93320028,9.999e-05,2]
[332621455,1721364646711,154.79103211,9.999e-05,2]
[332621456,1721364659263,567.73879262,9.999e-05,2]
[332621457,1721364738861,711.7076331,0.0001471,2]
[332621458,1721364783492,2425.98470639,0.00015,2]
[332621459,1721364786191,287.3476314,0.0001,2]
[332621460,1721364810313,1840.21461536,0.00015608,2]
[332621461,1721364818734,2425.98470639,0.00015,2]
[332621462,1721364822492,906.85515939,9.999e-05,2]
[332621463,1721364828363,382.200649,0.0001471,2]
[332621464,1721364831254,526.68531291,0.00014999,2]
[332621465,1721364836204,384.34618306,0.00012121,2]
[332621466,1721364843498,336.66824961,0.00015562,2]
[332621467,1721364844026,3752.29967853,0.000155,2]
[332621468,1721364869499,1184.67184216,0.00015,2]
[332621469,1721364874182,530.14667594,0.00012121,2]
[332621470,1721364884378,599.9748975,9.999e-05,2]
[332621471,1721364886407,402.73067489,0.00015,2]
[332621472,1721364913412,166.666666,0.00014795,2]
[332621473,1721364948783,156.68771632,9.999e-05,2]
[332621474,1721364981026,187.5,0.00014841,2]
[332621475,1721364981251,187.5,0.00015099,2]
[332621476,1721364981468,187.5,0.00015356,2]
[332621477,1721364981710,187.5,0.00015614,2]
[332621478,1721365016102,5000.0,0.00015,2]
[332621479,1721365019227,404.16174305,9.999e-05,2]
[332621480,1721365027684,154.79103211,0.00014999,2]
[332621481,1721365215100,1472.17169228,0.00015608,2]
[332621482,1721365276520,24900.0,0.0001471,2]
[332621483,1721365388528,367.2522507,0.00015367,2]
[332621484,1721365394970,878.04783051,9.999e-05,2]
[332621485,1721365448751,679.76830747,0.0001212,2]
[332621486,1721365463142,191.100324,0.00014708,2]
[332621487,1721365477963,1043.9320593,0.00015,2]
[332621488,1721365478456,156.58671833,0.0001212,2]
[332621489,1721365621695,1177.73735384,0.00015608,2]
[332621490,1721365623756,1177.73735382,0.00015669,2]
[332621492,1721365735671,166.666666,0.00014795,2]
[332621494,1721365771600,-300.0,0.00015697,2]
[332621495,1721365771629,-500.0,0.00015698,2]
[332621497,1721365771658,-45.4146657,0.00015698,2]
[332621499,1721365771692,-454.5853343,0.00015698,2]
[332621501,1721365771721,-321.41406384,0.00015698,2]
[332621502,1721365796672,-178.58593616,0.00015698,2]
[332621504,1721365796701,-267.75384868,0.00015698,2]
[332621505,1721365796730,-431.50316213,0.00015698,2]
[332621507,1721365796782,-68.49683787,0.00015698,2]
[332621509,1721365796812,-500.0,0.00015698,2]
[332621510,1721365796845,-309.3461091,0.00015698,2]
[332621511,1721365796892,-190.6538909,0.00015698,2]
[332621512,1721365796920,-500.0,0.00015698,2]
[332621513,1721365796950,-112.75637241,0.00015698,2]
[332621514,1721365807283,772.58812779,9.999e-05,2]
[332621550,1721365832566,-300.0,0.00015697,2]
[332621551,1721365832576,-500.0,0.00015698,2]
[332621552,1721365832586,-272.58812779,0.00015698,2]
[332621629,1721365841854,-227.41187221,0.00015698,2]
[332621630,1721365841864,-500.0,0.00015698,2]
[332621631,1721365841876,-500.0,0.00015698,2]
[332621632,1721365841886,-500.0,0.00015698,2]
[332621633,1721365841895,-427.89883393,0.00015698,2]
[332621635,1721365841905,-500.0,0.00015698,2]
[332621637,1721365841915,-500.0,0.00015698,2]
[332621638,1721365841925,-303.67863842,0.00015698,2]
[332621640,1721365841934,-500.0,0.00015698,2]
[332621641,1721365841944,-500.0,0.00015698,2]
[332621642,1721365841954,-500.0,0.00015698,2]
[332621643,1721365841963,-500.0,0.00015698,2]
[332621644,1721365841973,-500.0,0.00015698,2]
[332621645,1721365841983,-366.180776,0.00015698,2]
[332621646,1721365841992,-207.35341955,0.00015698,2]
[332621647,1721365842002,-151.0,0.00015699,2]
[332621648,1721365842012,-151.0,0.00015699,2]
[332621649,1721365842021,-14305.82175405,0.00015699,2]
[332621650,1721365842034,-235042.34259195,0.00015699,2]
[332621651,1721365842043,-5480.26395168,0.00015708,2]
[332621652,1721365842053,-492.04095382,0.00015708,2]
[332621653,1721365842062,-9778.82916565,0.00015708,2]
[332621654,1721365842072,-17343.52710932,0.00015708,2]
[332621655,1721365842081,-1500.0,0.00015708,2]
[332621656,1721365842090,-5853.8686017,0.00015708,2]
[332621657,1721365842100,-2708.53736941,0.00015708,2]
[332621658,1721365842110,-16036.93020364,0.00015708,2]
[332621659,1721365842120,-151.0,0.00015708,2]
[332621660,1721365842129,-151.0,0.00015708,2]
[332621661,1721365842138,-158.701642,0.00015708,2]
[332621662,1721365842147,-500.0,0.00015708,2]
[332621663,1721365842158,-500.0,0.00015708,2]
[332621664,1721365842168,-290.42216807,0.00015708,2]
[332621665,1721365842178,-500.0,0.00015708,2]
[332621666,1721365842188,-500.0,0.00015708,2]
[332621667,1721365842198,-651.19624934,0.00015708,2]
[332621668,1721365842210,-500.0,0.00015708,2]
[332621669,1721365842220,-223.09496327,0.00015708,2]
[332621670,1721365842232,-500.0,0.00015708,2]
[332621671,1721365842243,-500.0,0.00015708,2]
[332621672,1721365842253,-500.0,0.00015708,2]
[332621673,1721365842262,-500.0,0.00015708,2]
[332621674,1721365842272,-500.0,0.00015708,2]
[332621675,1721365842282,-500.0,0.00015708,2]
[332621676,1721365842292,-500.0,0.00015708,2]
[332621677,1721365842302,-500.0,0.00015708,2]
[332621678,1721365842311,-190.87724161,0.00015708,2]
[332621679,1721365842321,-500.0,0.00015708,2]
[332621680,1721365842331,-500.0,0.00015708,2]
[332621681,1721365842340,-500.0,0.00015708,2]
[332621682,1721365842353,-500.0,0.00015708,2]
[332621683,1721365842362,-355.64180229,0.00015708,2]
[332621684,1721365842371,-311.52330369,0.00015708,2]
[332621685,1721365842381,-500.0,0.00015708,2]
[332621686,1721365842390,-446.49753866,0.00015708,2]
[332621687,1721365842400,-450.0,0.00015708,2]
[332621688,1721365842410,-187.22158097,0.00015708,2]
[332621689,1721365842419,-500.0,0.00015708,2]
[332621690,1721365842429,-500.0,0.00015708,2]
[332621691,1721365842440,-500.0,0.00015708,2]
[332621692,1721365842450,-500.0,0.00015708,2]
[332621693,1721365842465,-6995.74191931,0.00015708,2]
[332621694,1721365842475,-151.0,0.00015708,2]
[332621695,1721365842485,-151.0,0.00015708,2]
[332621696,1721365842495,-567.73879262,0.00015708,2]
[332621697,1721365842504,-567.73879262,0.00015708,2]
[332621698,1721365842514,-67160.46589328,0.00015709,2]
[332621699,1721365842523,-1000.0,0.00015709,2]
[332621700,1721365842535,-1000.0,0.00015709,2]
[332621701,1721365842545,-1000.0,0.00015709,2]
[332621702,1721365842554,-1000.0,0.00015709,2]
[332621703,1721365842564,-1000.0,0.00015709,2]
[332621704,1721365842574,-1000.0,0.00015709,2]
[332621705,1721365842584,-1000.0,0.00015709,2]
[332621706,1721365842594,-1000.0,0.00015709,2]
[332621707,1721365842603,-1000.0,0.00015709,2]
[332621708,1721365842613,-1000.0,0.00015709,2]
[332621709,1721365842623,-271.664879,0.00015709,2]
[332621710,1721365842632,-159.99317739,0.0001571,2]
[332621711,1721365842641,-322.28215997,0.00015712,2]
[332621712,1721365842651,-1177.73735382,0.0001573,2]
[332621713,1721365842661,-599.9748975,0.00015746,2]
[332621714,1721365842671,-244.83466005,0.00015746,2]
[332621715,1721365842681,-1177.73735382,0.00015791,2]
[332621716,1721365842690,-172.7595482,0.00015794,2]
[332621717,1721365842700,-1253.65528491,0.00015851,2]
[332621718,1721365842709,-1177.73735382,0.00015852,2]
[332621719,1721365842719,-299.45622389,0.00016038,2]
[332621720,1721365842729,-321.37624907,0.00016079,2]
[332621721,1721365842740,-773.05238989,0.00016095,2]
[332621722,1721365842749,-404.16174305,0.00016095,2]
[332621723,1721365842759,-153.0,0.000161,2]
[332621724,1721365842770,-153.0,0.000161,2]
[332621725,1721365842779,-153.0,0.000161,2]
[332621726,1721365842789,-409.5426384,0.000161,2]
[332621727,1721365842799,-208.46306467,0.00016159,2]
[332621728,1721365842809,-208.46306467,0.00016159,2]
[332621729,1721365842819,-153.6906518,0.000162,2]
[332621730,1721365842829,-153.0,0.000162,2]
[332621731,1721365842839,-155.45305119,0.00016309,2]
[332621732,1721365842850,-154.79103211,0.00016309,2]
[332621733,1721365842860,-1027.82946815,0.00016309,2]
[332621734,1721365842871,-124674.082173,0.00016428,2]
[332621735,1721365842880,-500.0,0.00016438,2]
[332621736,1721365842889,-500.0,0.00016438,2]
[332621737,1721365842899,-500.0,0.00016438,2]
[332621738,1721365842909,-500.0,0.00016438,2]
[332621739,1721365842918,-500.0,0.00016438,2]
[332621740,1721365842930,-500.0,0.00016438,2]
[332621741,1721365842941,-500.0,0.00016438,2]
[332621742,1721365842951,-500.0,0.00016438,2]
[332621743,1721365842962,-500.0,0.00016438,2]
[332621744,1721365842972,-500.0,0.00016438,2]
[332621745,1721365842981,-500.0,0.00016438,2]
[332621747,1721365842991,-500.0,0.00016438,2]
[332621748,1721365843000,-500.0,0.00016438,2]
[332621749,1721365843010,-500.0,0.00016438,2]
[332621750,1721365843019,-500.0,0.00016438,2]
[332621751,1721365843028,-500.0,0.00016438,2]
[332621752,1721365843038,-500.0,0.00016438,2]
[332621753,1721365843048,-500.0,0.00016438,2]
[332621754,1721365843057,-500.0,0.00016438,2]
[332621755,1721365843068,-500.0,0.00016438,2]
[332621756,1721365843077,-151.621417,0.00016438,2]
[332621757,1721365843087,-151.0,0.00016438,2]
[332621758,1721365843097,-151.817836,0.00016438,2]
[332621759,1721365843106,-154.643178,0.00016438,2]
[332621760,1721365843115,-151.0,0.00016438,2]
[332621761,1721365843126,-151.0,0.00016438,2]
[332621762,1721365843136,-151.0,0.00016438,2]
[332621763,1721365843147,-151.0,0.00016438,2]
[332621764,1721365843160,-151.0,0.00016438,2]
[332621765,1721365843169,-151.0,0.00016438,2]
[332621766,1721365843179,-151.0,0.00016438,2]
[332621767,1721365843189,-151.0,0.00016438,2]
[332621768,1721365843198,-237.003861,0.00016438,2]
[332621769,1721365843208,-152.008234,0.00016438,2]
[332621770,1721365843218,-153.077561,0.00016438,2]
[332621772,1721365843227,-151.0,0.00016438,2]
[332621774,1721365843237,-151.0,0.00016438,2]
[332621776,1721365843247,-151.0,0.00016438,2]
[332621778,1721365843257,-151.0,0.00016438,2]
[332621780,1721365843266,-151.0,0.00016438,2]
[332621782,1721365843276,-283.846103,0.00016438,2]
[332621785,1721365843285,-151.0,0.00016438,2]
[332621788,1721365843295,-151.0,0.00016438,2]
[332621791,1721365843305,-151.0,0.00016438,2]
[332621794,1721365843314,-151.0,0.00016438,2]
[332621796,1721365843324,-151.0,0.00016438,2]
[332621798,1721365843335,-151.0,0.00016438,2]
[332621800,1721365843350,-151.0,0.00016438,2]
[332621802,1721365843359,-151.0,0.00016438,2]
[332621804,1721365843369,-151.0,0.00016438,2]
[332621806,1721365843379,-151.0,0.00016438,2]
[332621808,1721365843388,-151.0,0.00016438,2]
[332621809,1721365843399,-151.0,0.00016438,2]
[332621811,1721365843408,-151.0,0.00016438,2]
[332621812,1721365843418,-151.0,0.00016438,2]
[332621814,1721365843427,-151.0,0.00016438,2]
[332621816,1721365843437,-151.0,0.00016438,2]
[332621818,1721365843446,-151.0,0.00016438,2]
[332621819,1721365843460,-151.0,0.00016438,2]
[332621821,1721365843469,-151.0,0.00016438,2]
[332621822,1721365843479,-151.0,0.00016438,2]
[332621824,1721365843489,-151.0,0.00016438,2]
[332621826,1721365843498,-151.0,0.00016438,2]
[332621827,1721365843508,-151.0,0.00016438,2]
[332621829,1721365843517,-151.0,0.00016438,2]
[332621830,1721365843526,-202.214059,0.00016438,2]
[332621832,1721365843537,-155.924414,0.00016438,2]
[332621834,1721365843547,-151.0,0.00016438,2]
[332621836,1721365843557,-151.0,0.00016438,2]
[332621837,1721365843566,-151.0,0.00016438,2]
[332621839,1721365843575,-151.0,0.00016438,2]
[332621841,1721365843584,-151.0,0.00016438,2]
[332621843,1721365843595,-171.335107,0.00016438,2]
[332621844,1721365843604,-151.0,0.00016438,2]
[332621846,1721365843613,-151.0,0.00016438,2]
[332621848,1721365843623,-151.0,0.00016438,2]
[332621850,1721365843632,-171.335107,0.00016438,2]
[332621852,1721365843642,-151.0,0.00016438,2]
[332621853,1721365843651,-171.335107,0.00016438,2]
[332621855,1721365843660,-151.0,0.00016438,2]
[332621856,1721365843669,-171.335107,0.00016438,2]
[332621858,1721365843678,-161.431635,0.00016438,2]
[332621860,1721365843687,-171.335107,0.00016438,2]
[332621861,1721365843697,-171.335107,0.00016438,2]
[332621862,1721365843707,-171.335107,0.00016438,2]
[332621863,1721365843716,-171.335107,0.00016438,2]
[332621864,1721365843725,-171.335107,0.00016438,2]
[332621865,1721365843734,-171.335107,0.00016438,2]
[332621866,1721365843744,-171.335107,0.00016438,2]
[332621867,1721365843753,-171.335107,0.00016438,2]
[332621868,1721365843762,-171.335107,0.00016438,2]
[332621869,1721365843771,-171.335107,0.00016438,2]
[332621870,1721365843780,-171.335107,0.00016438,2]
[332621871,1721365843790,-171.335107,0.00016438,2]
[332621872,1721365843799,-171.335107,0.00016438,2]
[332621873,1721365843808,-171.335107,0.00016438,2]
[332621874,1721365843819,-171.335107,0.00016438,2]
[332621875,1721365843839,-171.335103,0.00016438,2]
[332621878,1721365843851,-151.0,0.00016438,2]
[332621881,1721365843862,-151.0,0.00016438,2]
[332621884,1721365843871,-151.0,0.00016438,2]
[332621887,1721365843882,-151.0,0.00016438,2]
[332621890,1721365843893,-151.0,0.00016438,2]
[332621892,1721365843903,-151.0,0.00016438,2]
[332621895,1721365843914,-151.0,0.00016438,2]
[332621898,1721365843924,-151.0,0.00016438,2]
[332621901,1721365843934,-151.0,0.00016438,2]
[332621903,1721365843944,-151.0,0.00016438,2]
[332621904,1721365843953,-222.81126,0.00016438,2]
[332621905,1721365843964,-487.704636,0.00016438,2]
[332621906,1721365843974,-487.704636,0.00016438,2]
[332621907,1721365843983,-487.704636,0.00016438,2]
[332621908,1721365843992,-487.704636,0.00016438,2]
[332621909,1721365844001,-487.704636,0.00016438,2]
[332621910,1721365844010,-487.704636,0.00016438,2]
[332621911,1721365844020,-487.704636,0.00016438,2]
[332621912,1721365844029,-487.704636,0.00016438,2]
[332621913,1721365844038,-487.704636,0.00016438,2]
[332621914,1721365844048,-487.704636,0.00016438,2]
[332621915,1721365844057,-487.704636,0.00016438,2]
[332621916,1721365844066,-487.704636,0.00016438,2]
[332621917,1721365844076,-487.704636,0.00016438,2]
[332621918,1721365844085,-487.704636,0.00016438,2]
[332621919,1721365844096,-487.704636,0.00016438,2]
[332621920,1721365844106,-487.704636,0.00016438,2]
[332621921,1721365844116,-487.704636,0.00016438,2]
[332621922,1721365844125,-487.704636,0.00016438,2]
[332621923,1721365844135,-166.666666,0.00016438,2]
[332621924,1721365844144,-487.704636,0.00016438,2]
[332621925,1721365844154,-487.70464,0.00016438,2]
[332621926,1721365844164,-153.234003,0.00016438,2]
[332621927,1721365844173,-233.884075,0.00016438,2]
[332621928,1721365844182,-233.884075,0.00016438,2]
[332621929,1721365844191,-233.884075,0.00016438,2]
[332621930,1721365844200,-233.884075,0.00016438,2]
[332621931,1721365844210,-233.884075,0.00016438,2]
[332621932,1721365844219,-233.884075,0.00016438,2]
[332621933,1721365844229,-233.884075,0.00016438,2]
[332621934,1721365844239,-233.884075,0.00016438,2]
[332621935,1721365844249,-233.884075,0.00016438,2]
[332621936,1721365844258,-233.884075,0.00016438,2]
[332621937,1721365844268,-233.884075,0.00016438,2]
[332621938,1721365844278,-233.884075,0.00016438,2]
[332621939,1721365844287,-233.884075,0.00016438,2]
[332621940,1721365844296,-233.884075,0.00016438,2]
[332621941,1721365844305,-233.884075,0.00016438,2]
[332621942,1721365844314,-233.884075,0.00016438,2]
[332621943,1721365844323,-233.884075,0.00016438,2]
[332621944,1721365844332,-233.884075,0.00016438,2]
[332621945,1721365844341,-233.884075,0.00016438,2]
[332621946,1721365844352,-233.884077,0.00016438,2]
[332621947,1721365844363,-155.113581,0.00016438,2]
[332621948,1721365844372,-294.256131,0.00016438,2]
[332621949,1721365844381,-294.256131,0.00016438,2]
[332621950,1721365844392,-294.256131,0.00016438,2]
[332621951,1721365844401,-294.256131,0.00016438,2]
[332621952,1721365844410,-294.256131,0.00016438,2]
[332621953,1721365844420,-294.256131,0.00016438,2]
[332621954,1721365844429,-294.256131,0.00016438,2]
[332621955,1721365844439,-294.256131,0.00016438,2]
[332621956,1721365844448,-294.256131,0.00016438,2]
[332621957,1721365844462,-294.256131,0.00016438,2]
[332621958,1721365844472,-294.256131,0.00016438,2]
[332621959,1721365844481,-294.256131,0.00016438,2]
[332621960,1721365844491,-294.256131,0.00016438,2]
[332621961,1721365844503,-294.256131,0.00016438,2]
[332621962,1721365844514,-294.256131,0.00016438,2]
[332621963,1721365844524,-294.256131,0.00016438,2]
[332621964,1721365844536,-294.256131,0.00016438,2]
[332621965,1721365844546,-151.0,0.00016438,2]
[332621966,1721365844556,-151.0,0.00016438,2]
[332621967,1721365844566,-294.256131,0.00016438,2]
[332621968,1721365844577,-151.0,0.00016438,2]
[332621969,1721365844586,-151.0,0.00016438,2]
[332621970,1721365844598,-294.256131,0.00016438,2]
[332621971,1721365844607,-151.0,0.00016438,2]
[332621972,1721365844617,-151.0,0.00016438,2]
[332621973,1721365844627,-294.256127,0.00016438,2]
[332621974,1721365844637,-286.82483,0.00016438,2]
[332621975,1721365844646,-151.0,0.00016438,2]
[332621976,1721365844655,-151.0,0.00016438,2]
[332621977,1721365844665,-151.0,0.00016438,2]
[332621978,1721365844674,-339.897922,0.00016438,2]
[332621979,1721365844684,-339.897922,0.00016438,2]
[332621980,1721365844694,-339.897922,0.00016438,2]
[332621981,1721365844703,-339.897922,0.00016438,2]
[332621982,1721365844712,-339.897922,0.00016438,2]
[332621983,1721365844721,-339.897922,0.00016438,2]
[332621984,1721365844731,-339.897922,0.00016438,2]
[332621985,1721365844740,-339.897922,0.00016438,2]
[332621986,1721365844749,-339.897922,0.00016438,2]
[332621987,1721365844759,-339.897922,0.00016438,2]
[332621988,1721365844769,-339.897922,0.00016438,2]
[332621989,1721365844779,-339.897922,0.00016438,2]
[332621990,1721365844787,-339.897922,0.00016438,2]
[332621991,1721365844797,-339.897922,0.00016438,2]
[332621992,1721365844806,-339.897922,0.00016438,2]
[332621993,1721365844816,-339.897922,0.00016438,2]
[332621994,1721365844825,-339.897922,0.00016438,2]
[332621995,1721365844835,-339.897922,0.00016438,2]
[332621996,1721365844846,-339.897922,0.00016438,2]
[332621997,1721365844856,-339.89791897,0.00016438,2]
[332621998,1721365844867,-151.0,0.00016438,2]
[332621999,1721365844876,-151.0,0.00016438,2]
[332622000,1721365844885,-151.0,0.00016438,2]
[332622001,1721365844895,-296.994317,0.00016438,2]
[332622002,1721365844904,-151.0,0.00016438,2]
[332622003,1721365844914,-151.0,0.00016438,2]
[332622004,1721365844923,-154.389056,0.00016438,2]
[332622005,1721365844933,-151.0,0.00016438,2]
[332622006,1721365844942,-157.40418,0.00016438,2]
[332622007,1721365844952,-792.88102716,0.00016758,2]
[332622008,1721365844961,-154.79103211,0.00017019,2]
[332622009,1721365844971,-154.79103211,0.00017019,2]
[332622010,1721365844980,-861.2782374,0.00017019,2]
[332622011,1721365844989,-166.666666,0.00017079,2]
[332622012,1721365845001,-420.0,0.00017267,2]
[332622013,1721365845012,-726.4559758,0.00017389,2]
[332622014,1721365845023,-726.4559758,0.00017403,2]
[332622015,1721365845033,-124674.082173,0.00017586,2]
[332622016,1721365845043,-628.64405136,0.00017596,2]
[332622017,1721365845053,-1985.36101533,0.000176,2]
[332622018,1721365845064,-166.666666,0.00017721,2]
[332622019,1721365845074,-448.60514016,0.00017882,2]
[332622020,1721365845083,-424.63377089,0.00017882,2]
[332622021,1721365845093,-4177.38504229,0.00018,2]
[332622022,1721365845103,-215.78644239,0.00018,2]
[332622023,1721365845113,-507.99,0.00018074,2]
[332622024,1721365845123,-306.8309251,0.00018082,2]
[332622025,1721365845132,-1408.0,0.00018083,2]
[332622026,1721365845142,-526.68531291,0.00018125,2]
[332622027,1721365845152,-166.666666,0.00018362,2]
[332622028,1721365845164,-150.267,0.00018458,2]
[332622029,1721365845173,-250.0,0.00018458,2]
[332622030,1721365845183,-214.252,0.00018458,2]
[332622031,1721365845192,-266.074,0.00018458,2]
[332622032,1721365845202,-620.43220257,0.00018476,2]
[332622033,1721365845211,-240.45271023,0.00018667,2]
[332622034,1721365845221,-539.01866729,0.00018667,2]
[332622035,1721365845230,-309.26121486,0.00018679,2]
[332622036,1721365845240,-155.60455322,0.00018679,2]
[332622037,1721365845397,-156.37350607,0.00018679,2]
[332622038,1721365845408,-155.39443755,0.00018679,2]
[332622039,1721365845418,-441.30036835,0.00018696,2]
[332622040,1721365845428,-320.11222392,0.00018696,2]
[332622041,1721365845438,-342.45848981,0.00018696,2]
[332622042,1721365845448,-518.8113678,0.00018701,2]
[332622043,1721365845461,-1520.25898993,0.000189,2]
[332622044,1721365845471,-172.56150363,0.00018921,2]
[332622045,1721365845481,-484.4,0.00018952,2]
[332622046,1721365845490,-521.17738443,0.00018969,2]
[332622047,1721365845501,-847.480665,0.00018989,2]
[332622048,1721365845511,-1159.1747415,0.0001899,2]
[332622049,1721365845520,-587.0,0.00018993,2]
[332622050,1721365845532,-19042.18365904,0.00019,2]
[332622051,1721365845843,-2667.2,0.00019,2]
[332622062,1721365944261,2834.10611214,0.00015608,2]
[332622063,1721365981530,389.73996593,0.00015608,2]
[332622065,1721366273344,166.666666,0.00014795,2]
[332622067,1721366547887,220.76165296,0.00014795,2]
[332622068,1721366665385,218.03767107,0.00014795,2]
[332622069,1721366700549,157.24600443,9.999e-05,2]
[332622070,1721366769898,217.65617241,9.999e-05,2]
[332622071,1721366823020,160.16535353,0.0001212,2]
[332622072,1721366828059,342.45848981,0.0001212,2]
[332622073,1721366829076,166.666666,0.00014795,2]
[332622075,1721366926902,12929.30552394,0.0001,2]
[332622080,1721366962423,217.97790573,0.00014795,2]
[332622084,1721366975585,424.63377089,0.00012121,2]
[332622088,1721367015362,525.39824529,0.00012121,2]
[332622089,1721367023925,217.97790573,0.00012121,2]
[332622117,1721367031827,-191.100325,0.00016023,2]
[332622118,1721367031839,-240.45271023,0.00016038,2]
[332622119,1721367031849,-413.3397245,0.00016095,2]
[332622126,1721367035771,263.89107345,0.00014692,2]
[332622176,1721367037916,-466.87360957,0.00016095,2]
[332622177,1721367037926,-297.0223638,0.00016095,2]
[332622178,1721367037935,-157.688687,0.0001611,2]
[332622179,1721367037947,-8081.14032229,0.0001611,2]
[332622180,1721367037956,-2137.12619851,0.00016159,2]
[332622181,1721367037965,-300.0,0.00016194,2]
[332622182,1721367037975,-300.0,0.00016194,2]
[332622183,1721367037984,-24900.0,0.00016195,2]
[332622184,1721367037993,-889.48004764,0.00016309,2]
[332622185,1721367038003,-559.2231156,0.00016309,2]
[332622186,1721367038013,-2425.643977,0.00016347,2]
[332622187,1721367038023,-1063.24064835,0.00016347,2]
[332622188,1721367038034,-178.571428,0.00016419,2]
[332622189,1721367038044,-166.666666,0.00016438,2]
[332622190,1721367038054,-178.571428,0.00016562,2]
[332622191,1721367038066,-178.571428,0.00016704,2]
[332622192,1721367038075,-166.666666,0.00016823,2]
[332622193,1721367038084,-178.571428,0.00016847,2]
[332622194,1721367038094,-1449.29531569,0.00016919,2]